bitfinex-derivatives/quotes_SOLF0:USTF0_20241002
["timestamp","ask_amount","ask_price","bid_price","bid_amount"]
[1727827876531,1.18968308,144.79,144.72,16.57]
[1727827876736,79.48662801,144.8,144.72,16.57]
[1727827876932,2.7635,144.77,144.72,19.3343]
[1727827877130,16.57,144.79,144.71,0.12502]
[1727827877633,2.7637,144.76,144.71,0.12502]
[1727827877833,16.57,144.79,144.71,0.12502]
[1727827878333,16.57,144.79,144.71,2.88952]
[1727827878538,79.48662801,144.8,144.72,16.57]
[1727827878539,92.5823,144.8,144.72,16.57]
[1727827878735,2.7635,144.77,144.72,16.57]
[1727827878939,96.05593674,144.8,144.73,2.7641]
[1727827879330,21.43593674,144.8,144.73,2.7641]
[1727827879838,1.3923,144.8,144.72,16.57]
[1727827880036,1.3923,144.8,144.74,16.57]
[1727827881240,2.763,144.79,144.74,19.3339]
[1727827882034,21.36817728,144.8,144.71,0.12502]
[1727827882337,17.9623,144.8,144.71,0.12502]
[1727827882539,19.3326,144.8,144.71,0.12502]
[1727827882731,2.7637,144.76,144.71,2.88942]
[1727827882934,22.75310369,144.8,144.71,0.12502]
[1727827883342,2.7639,144.75,144.71,0.12502]
[1727827884340,2.7639,144.75,144.71,2.88942]
[1727827885236,16.57,144.78,144.71,0.12502]
[1727827885540,16.57,144.76,144.65,0.12502]
[1727827885734,19.3326,144.8,144.65,0.12502]
[1727827885735,16.57,144.69,144.65,0.12502]
[1727827885936,19.9534332,144.69,144.65,0.12502]
[1727827886338,2.7655,144.66,144.65,0.12502]
[1727827886929,19.9534332,144.69,144.65,0.12502]
[1727827887132,19.9534332,144.69,144.59,0.12502]
[1727827887344,19.9534332,144.69,144.59,16.69502]
[1727827887740,17.75936608,144.68,144.59,0.12502]
[1727827887934,1.18928495,144.67,144.59,0.12502]
[1727827889340,2.766,144.64,144.59,0.12502]
[1727827889945,26.57,144.68,144.59,0.12502]
[1727827890245,2.766,144.63,144.59,0.12502]
[1727827890544,26.57,144.68,144.59,0.12502]
[1727827890746,1.18940549,144.67,144.59,0.12502]
[1727827891146,26.57,144.68,144.59,0.12502]
[1727827891446,1.18936539,144.67,144.59,0.12502]
[1727827891637,26.57,144.68,144.59,0.12502]
[1727827892151,2.7658,144.65,144.59,2.89172]
[1727827893451,1.3933,144.67,144.59,2.89172]
[1727827893452,2.7655,144.66,144.6,2.7665]
[1727827893638,2.7655,144.66,144.59,0.12502]
[1727827893952,2.7655,144.66,144.6,2.7666]
[1727827894443,2.7657,144.65,144.59,0.12502]
[1727827894752,2.7657,144.65,144.59,2.89182]
[1727827896654,2.7659,144.64,144.59,0.12502]
[1727827897048,1.3933,144.67,144.59,0.12502]
[1727827897948,2.7658,144.65,144.6,2.7666]
[1727827900158,2.7658,144.65,144.59,2.89172]
[1727827901060,1.3933,144.67,144.59,0.12502]
[1727827901770,4.1587,144.67,144.61,2.7663]
[1727827902060,4.1587,144.67,144.59,0.12502]
[1727827902061,0.12502,144.71,144.63,26.57]
[1727827902265,0.12502,144.71,144.69,2.7648]
[1727827902459,0.12502,144.71,144.65,26.57]
[1727827902851,0.12502,144.71,144.7,2.7647]
[1727827903163,0.12502,144.71,144.65,30.05963278]
[1727827903368,0.12502,144.71,144.63,27.9546]
[1727827904259,2.7648,144.7,144.65,2.7655]
[1727827904564,2.7648,144.7,144.63,27.9546]
[1727827904861,2.88962,144.71,144.67,2.7653]
[1727827905364,0.12502,144.71,144.63,27.9546]
[1727827905556,0.12502,144.71,144.65,26.57]
[1727827906861,0.12502,144.71,144.7,26.57]
[1727827907059,0.12502,144.77,144.74,2.7638]
[1727827908363,0.12502,144.77,144.72,26.57]
[1727827908563,0.12502,144.77,144.72,27.9445]
[1727827908955,0.12502,144.77,144.73,2.764]
[1727827909270,0.12502,144.77,144.72,27.9445]
[1727827909658,2.88852,144.77,144.73,2.764]
[1727827909861,0.12502,144.77,144.73,2.764]
[1727827910159,0.12502,144.77,144.72,27.9445]
[1727827910160,2.7636,144.76,144.72,2.7643]
[1727827911364,0.12502,144.77,144.71,4.0611]
[1727827911365,2.7639,144.75,144.71,4.0611]
[1727827911559,0.12502,144.77,144.71,1.2967]
[1727827911758,16.72502,144.77,144.69,1.2786]
[1727827912159,2.7638,144.75,144.7,2.7647]
[1727827912464,16.72502,144.77,144.68,16.6]
[1727827912664,2.7643,144.73,144.69,2.7648]
[1727827912964,16.72502,144.77,144.68,16.6]
[1727827913658,2.7639,144.75,144.69,2.7649]
[1727827913965,16.72502,144.77,144.69,2.7649]
[1727827914764,2.7641,144.74,144.69,2.7649]
[1727827914966,16.72502,144.77,144.69,2.7649]
[1727827915964,2.7641,144.74,144.69,2.7649]
[1727827916470,16.72502,144.77,144.68,16.6]
[1727827916664,2.7636,144.76,144.68,16.6]
[1727827917264,2.7636,144.76,144.7,16.6]
[1727827919366,2.7636,144.76,144.72,2.7642]
[1727827920674,5.52,144.75,144.7,16.6]
[1727827920872,5.52,144.75,144.68,16.6]
[1727827921272,8.2838,144.75,144.71,2.7644]
[1727827921468,3.46129979,144.74,144.66,1.2927]
[1727827921872,5.99869979,144.74,144.66,1.2927]
[1727827922166,2.5374,144.74,144.67,16.6]
[1727827922373,5.52,144.75,144.69,16.6]
[1727827922572,8.2838,144.75,144.71,2.7644]
[1727827923172,5.52,144.75,144.71,16.6]
[1727827923769,2.7639,144.74,144.69,16.6]
[1727827923971,5.52,144.75,144.67,16.6]
[1727827924284,16.6,144.73,144.66,1.2927]
[1727827924575,16.6,144.71,144.65,0.12502]
[1727827924977,16.6,144.71,144.65,2.89062]
[1727827925371,2.7655,144.66,144.65,0.12502]
[1727827926064,16.6,144.7,144.65,0.12502]
[1727827926268,2.765,144.69,144.65,2.89072]
[1727827927276,2.7647,144.71,144.65,2.89072]
[1727827927481,17.8737,144.72,144.65,0.12502]
[1727827928676,16.6,144.7,144.65,0.12502]
[1727827930279,2.7652,144.68,144.65,0.12502]
[1727827930879,2.765,144.69,144.65,0.12502]
[1727827931580,16.6,144.7,144.65,0.12502]
[1727827931882,16.6,144.68,144.65,0.12502]
[1727827932577,19.3655,144.66,144.65,0.12502]
[1727827932773,3.50895903,144.65,144.59,0.12502]
[1727827933176,2.7661,144.63,144.59,2.89182]
[1727827933377,16.6,144.66,144.59,2.89182]
[1727827933588,20.06919843,144.66,144.59,0.12502]
[1727827934273,2.7659,144.64,144.59,0.12502]
[1727827935280,2.7657,144.65,144.6,2.7665]
[1727827935782,2.766,144.64,144.59,2.89172]
[1727827936283,2.766,144.64,144.59,0.12502]
[1727827936876,2.766,144.64,144.59,2.89172]
[1727827937077,20.06919843,144.66,144.59,0.12502]
[1727827937078,2.7662,144.63,144.59,0.12502]
[1727827937583,16.6,144.64,144.59,0.12502]
[1727827937884,16.6,144.62,144.59,0.12502]
[1727827938382,2.7664,144.61,144.59,0.12502]
[1727827938781,16.6,144.62,144.59,0.12502]
[1727827938985,2.7666,144.6,144.59,0.12502]
[1727827939383,16.6,144.62,144.59,0.12502]
[1727827939972,2.7666,144.6,144.59,0.12502]
[1727827940897,16.6,144.6,144.55,0.12518]
[1727827941187,16.6,144.57,144.53,0.12502]
[1727827941395,19.3678,144.54,144.53,0.12502]
[1727827941782,22.77677574,144.54,144.53,0.12502]
[1727827942282,19.3678,144.54,144.53,0.12502]
[1727827942587,19.3677,144.55,144.53,0.12502]
[1727827942782,16.6,144.55,144.53,0.12502]
[1727827942984,1.3449,144.56,144.53,0.12502]
[1727827943785,4.1124,144.56,144.53,0.12502]
[1727827943977,1.3449,144.56,144.53,0.12502]
[1727827944183,2.7677,144.55,144.53,0.12502]
[1727827944383,16.6,144.55,144.53,0.12502]
[1727827944778,19.3678,144.54,144.53,0.12502]
[1727827944994,16.6,144.54,144.48,1.364]
[1727827945289,2.7681,144.53,144.48,1.364]
[1727827945786,16.6,144.54,144.48,1.364]
[1727827945987,2.7682,144.52,144.48,1.364]
[1727827946393,16.6,144.54,144.47,0.12502]
[1727827946585,2.7682,144.52,144.47,0.12502]
[1727827946779,16.6,144.52,144.47,0.12502]
[1727827946985,2.7687,144.5,144.47,0.12502]
[1727827947186,16.6,144.5,144.47,0.12502]
[1727827947693,2.7689,144.48,144.47,0.12502]
[1727827948285,2.7689,144.48,144.41,0.12502]
[1727827948286,16.6,144.48,144.41,0.12502]
[1727827948491,16.6,144.46,144.41,0.12502]
[1727827948792,4.79884245,144.49,144.36,0.12518]
[1727827948793,16.6,144.42,144.36,0.12518]
[1727827949094,16.6,144.41,144.36,0.12518]
[1727827949891,2.7706,144.4,144.36,0.12518]
[1727827950485,16.6,144.39,144.36,0.12518]
[1727827950689,16.6,144.37,144.36,0.12518]
[1727827951394,16.6,144.39,144.36,0.12518]
[1727827951798,1.2691,144.4,144.36,0.12518]
[1727827951994,16.6,144.43,144.36,0.12518]
[1727827952297,19.3699,144.43,144.37,2.771]
[1727827952689,19.3699,144.43,144.38,2.7708]
[1727827953598,2.7699,144.43,144.37,2.771]
[1727827953900,2.7701,144.42,144.37,2.771]
[1727827954099,26.62,144.44,144.37,2.771]
[1727827954796,26.62,144.44,144.39,2.7705]
[1727827954987,26.62,144.44,144.36,0.12518]
[1727827955595,26.62,144.41,144.36,0.12518]
[1727827955783,30.12017679,144.41,144.36,0.12518]
[1727827955987,32.89057679,144.41,144.36,0.12518]
[1727827956191,29.3904,144.41,144.36,0.12518]
[1727827956387,26.62,144.44,144.36,0.12518]
[1727827956593,2.7702,144.42,144.36,2.89638]
[1727827956794,3.43806027,144.41,144.36,2.89638]
[1727827956991,26.62,144.44,144.36,2.89638]
[1727827958190,26.62,144.44,144.36,0.12518]
[1727827958399,26.62,144.42,144.36,0.12518]
[1727827959101,3.43632807,144.41,144.36,0.12518]
[1727827959295,2.7704,144.4,144.36,0.12518]
[1727827960199,2.7706,144.39,144.36,0.12518]
[1727827961295,26.62,144.39,144.36,0.12518]
[1727827961495,29.391,144.37,144.36,0.12518]
[1727827962606,26.62,144.37,144.36,0.12518]
[1727827962991,26.62,144.37,144.35,0.12502]
[1727827963698,2.7712,144.36,144.35,0.12502]
[1727827964388,2.7716,144.34,144.29,0.12502]
[1727827964593,2.7716,144.34,144.29,2.89752]
[1727827965201,2.7712,144.36,144.31,2.7721]
[1727827965595,26.62,144.37,144.29,0.12502]
[1727827965797,2.7714,144.35,144.3,2.7723]
[1727827965995,26.62,144.37,144.3,2.7723]
[1727827967400,2.7714,144.35,144.3,2.7723]
[1727827968301,2.7714,144.35,144.29,0.12502]
[1727827968504,26.62,144.35,144.29,0.12502]
[1727827968696,26.62,144.3,144.29,0.12502]
[1727827968905,26.62,144.3,144.2,2.6435]
[1727827969100,26.62,144.28,144.2,2.6435]
[1727827969607,30.00348671,144.3,144.2,2.6435]
[1727827969810,26.62,144.3,144.2,2.6435]
[1727827970006,30.01146255,144.3,144.2,6.0370432]
[1727827970202,2.7726,144.29,144.24,2.7735]
[1727827970609,30.01146255,144.3,144.2,2.6435]
[1727827970800,2.7729,144.28,144.23,2.89872]
[1727827971006,26.62,144.28,144.23,0.12502]
[1727827971605,2.7731,144.27,144.23,0.12502]
[1727827972109,29.3928,144.28,144.23,2.89872]
[1727827972410,30.01146255,144.3,144.23,0.12502]
[1727827972712,2.7726,144.29,144.24,2.7734]
[1727827972914,5.54,144.28,144.24,2.7734]
[1727827974112,5.54,144.28,144.23,0.12502]
[1727827974511,5.54,144.28,144.27,2.7729]
[1727827980117,5.54,144.28,144.25,2.7732]
[1727827980303,5.54,144.28,144.23,0.12502]
[1727827980613,3.4326,144.28,144.23,0.12502]
[1727827980918,1.432,144.28,144.27,2.7729]
[1727827981118,0.12502,144.35,144.25,26.62]
[1727827981416,0.12502,144.35,144.28,26.62]
[1727827981621,0.12502,144.35,144.3,16.64]
[1727827981819,0.12502,144.35,144.34,2.7716]
[1727827983020,17.9645,144.43,144.39,2.7705]
[1727827983207,19.41,144.43,144.34,16.64]
[1727827983412,16.64,144.43,144.34,16.64]
[1727827983615,26.62,144.43,144.36,2.7711]
[1727827983826,26.62,144.43,144.31,26.62]
[1727827984007,26.62,144.43,144.34,2.7716]
[1727827984321,26.62,144.43,144.31,26.62]
[1727827984624,2.7707,144.39,144.35,2.7713]
[1727827985122,2.7707,144.39,144.36,2.7712]
[1727827986509,2.6066,144.46,144.29,0.12502]
[1727827986510,26.62,144.38,144.29,0.12502]
[1727827986715,26.62,144.35,144.29,0.12502]
[1727827987019,26.62,144.33,144.29,0.12502]
[1727827989015,26.62,144.31,144.23,0.12502]
[1727827989217,3.51013061,144.3,144.23,0.12502]
[1727827989421,2.7727,144.29,144.23,2.89872]
[1727827989722,9.05013061,144.3,144.23,2.89872]
[1727827990222,5.54,144.3,144.23,0.12502]
[1727827990615,11.82159047,144.3,144.25,2.7732]
[1727827991017,8.3125,144.3,144.25,2.7732]
[1727827992232,5.54,144.3,144.24,26.62]
[1727827992523,5.54,144.3,144.29,2.7726]
[1727827992719,5.54,144.3,144.25,2.7517]
[1727827995226,5.54,144.3,144.28,2.7727]
[1727827995429,5.54,144.3,144.25,2.7517]
[1727827995624,2.7726,144.29,144.25,1.3967]
[1727827995922,5.54,144.3,144.27,2.7728]
[1727827997331,5.54,144.3,144.29,2.7726]
[1727828003827,5.54,144.3,144.28,2.7726]
[1727828004732,5.54,144.3,144.25,1.3967]
[1727828004933,5.54,144.3,144.29,26.62]
[1727828005127,0.12502,144.35,144.29,30.15515379]
[1727828005428,0.12502,144.35,144.34,2.7716]
[1727828006425,1.47852,144.41,144.33,26.62]
[1727828006630,0.12502,144.41,144.39,2.7705]
[1727828007617,0.12502,144.41,144.37,2.7709]
[1727828007820,0.12502,144.41,144.33,26.62]
[1727828008433,5.54,144.4,144.33,26.62]
[1727828009130,5.54,144.4,144.32,1.3665]
[1727828009131,5.54,144.4,144.36,26.62]
[1727828009340,0.12502,144.41,144.4,2.7704]
[1727828009526,26.62,144.51,144.38,26.62]
[1727828009837,26.62,144.51,144.4,26.62]
[1727828010223,26.62,144.51,144.43,2.7697]
[1727828010224,2.7691,144.48,144.43,2.7697]
[1727828010422,26.62,144.51,144.43,2.7697]
[1727828010727,2.7698,144.44,144.4,2.7704]
[1727828011630,2.7698,144.44,144.41,2.7702]
[1727828011832,2.7695,144.45,144.41,2.7702]
[1727828013031,26.62,144.48,144.39,3.48244778]
[1727828013735,2.7693,144.46,144.42,2.7699]
[1727828014125,2.7693,144.46,144.39,3.48244778]
[1727828014329,26.62,144.51,144.43,2.7698]
[1727828014534,26.62,144.51,144.39,4.87424778]
[1727828015345,2.7695,144.45,144.39,4.87424778]
[1727828015842,2.7702,144.42,144.36,27.8929]
[1727828016043,26.62,144.48,144.36,27.8929]
[1727828016738,2.7698,144.44,144.39,2.7705]
[1727828017243,2.7699,144.43,144.39,2.7705]
[1727828017541,26.62,144.46,144.36,1.2729]
[1727828017742,2.6406,144.45,144.36,1.2729]
[1727828017932,2.6406,144.45,144.36,27.8929]
[1727828018336,2.6406,144.45,144.4,2.7703]
[1727828019336,2.7699,144.43,144.4,2.7703]
[1727828020551,6.13471973,144.45,144.36,27.8929]
[1727828020842,6.13471973,144.45,144.38,2.7707]
[1727828021040,7.42371973,144.45,144.38,2.7707]
[1727828021243,2.7699,144.43,144.38,2.7707]
[1727828021435,7.42371973,144.45,144.38,2.7707]
[1727828021831,7.42371973,144.45,144.35,0.12502]
[1727828022031,26.62,144.44,144.37,2.771]
[1727828022231,7.42371973,144.45,144.37,2.771]
[1727828022638,7.42371973,144.45,144.35,0.12502]
[1727828022842,26.62,144.43,144.35,0.12502]
[1727828023429,26.62,144.43,144.35,2.89632]
[1727828023836,2.7709,144.38,144.35,2.89632]
[1727828024235,26.62,144.41,144.35,0.12502]
[1727828024445,2.7709,144.38,144.35,0.12502]
[1727828025341,26.62,144.41,144.35,0.12502]
[1727828025736,2.7706,144.4,144.35,0.12502]
[1727828025941,26.62,144.41,144.35,0.12502]
[1727828026340,2.7711,144.37,144.35,0.12502]
[1727828026941,26.62,144.41,144.35,0.12502]
[1727828027140,2.7712,144.36,144.35,0.12502]
[1727828027539,2.7708,144.39,144.35,0.12502]
[1727828027742,1.3568,144.38,144.35,0.12502]
[1727828028243,2.6377,144.38,144.35,0.12502]
[1727828029643,2.6377,144.38,144.3,3.47467802]
[1727828029844,3.42582581,144.37,144.29,0.12502]
[1727828031149,3.42582581,144.37,144.36,2.7712]
[1727828031347,4.0193,144.38,144.29,0.12502]
[1727828031540,4.0193,144.38,144.31,16.64]
[1727828032051,4.0193,144.38,144.37,2.771]
[1727828036551,20.6593,144.38,144.3,1.2712]
[1727828039352,23.4302,144.38,144.3,1.2712]
[1727828039754,23.4302,144.38,144.35,2.7713]
[1727828040259,20.6593,144.38,144.3,1.2712]
[1727828040453,20.6593,144.38,144.37,2.771]
[1727828040650,20.6593,144.38,144.3,1.2712]
[1727828041056,20.6593,144.38,144.36,2.7711]
[1727828041764,23.4301,144.38,144.35,2.7713]
[1727828042363,23.4301,144.38,144.36,2.7712]
[1727828042755,20.6593,144.38,144.36,2.7712]
[1727828043151,3.41081229,144.37,144.29,16.76502]
[1727828043355,20.6593,144.38,144.29,16.76502]
[1727828044055,4.0193,144.38,144.31,16.64]
[1727828044252,2.6377,144.38,144.37,2.771]
[1727828045054,19.2777,144.38,144.29,0.12502]
[1727828045261,16.64,144.35,144.29,0.12502]
[1727828045655,16.64,144.35,144.33,2.7717]
[1727828045853,1.04,144.34,144.29,0.12502]
[1727828046357,1.04,144.34,144.33,2.7718]
[1727828066372,1.04,144.34,144.33,2.64947082]
[1727828067875,17.68,144.34,144.29,0.12502]
[1727828068581,20.4517,144.34,144.29,0.12502]
[1727828068968,20.4517,144.34,144.31,2.7721]
[1727828069376,20.4517,144.34,144.29,0.12502]
[1727828069576,1.04,144.34,144.29,0.12502]
[1727828069774,1.04,144.34,144.31,16.64]
[1727828069977,1.04,144.34,144.33,2.7718]
[1727828076191,1.04,144.34,144.3,1.2969]
[1727828076387,1.04,144.34,144.32,2.7719]
[1727828077193,2.7719,144.33,144.3,2.7723]
[1727828077396,16.64,144.34,144.29,0.12502]
[1727828077695,10.65,144.31,144.3,2.7722]
[1727828079089,10.65,144.31,144.29,0.12502]
[1727828079291,10.65,144.3,144.29,0.12502]
[1727828079493,16.64,144.32,144.29,0.12502]
[1727828080292,2.7723,144.31,144.29,0.12502]
[1727828082991,16.64,144.32,144.29,0.12502]
[1727828083198,2.7724,144.3,144.29,0.12502]
[1727828084194,1.01,144.3,144.29,0.12502]
[1727828085994,3.7824,144.3,144.29,0.12502]
[1727828086199,1.01,144.3,144.29,0.12502]
[1727828091400,1.01,144.3,144.29,2.89762]
[1727828102011,1.01,144.3,144.29,13.53762]
[1727828102718,1.01,144.3,144.29,0.12502]
[1727828103099,11.65,144.3,144.29,0.12502]
[1727828103303,11.65,144.3,144.26,2.7731]
[1727828103502,11.65,144.3,144.24,17.65832368]
[1727828103703,11.65,144.3,144.24,10.64]
[1727828104530,2.7727,144.29,144.27,2.7729]
[1727828104705,2.7727,144.29,144.24,10.64]
[1727828104900,2.7727,144.29,144.26,2.773]
[1727828106710,10.64,144.28,144.23,10.76502]
[1727828106912,10.64,144.26,144.23,0.12502]
[1727828107306,13.4133,144.26,144.23,2.89862]
[1727828107912,10.64,144.25,144.23,0.12502]
[1727828109199,2.7735,144.24,144.23,0.12502]
[1727828109605,1.3169,144.26,144.23,0.12502]
[1727828109806,4.0902,144.26,144.23,2.89862]
[1727828111109,1.3169,144.26,144.23,0.12502]
[1727828111316,13.4134,144.25,144.23,0.12502]
[1727828112722,2.7735,144.24,144.23,0.12502]
[1727828113014,10.64,144.24,144.18,2.7745]
[1727828113222,10.64,144.22,144.18,2.7745]
[1727828114318,2.7742,144.21,144.18,2.7745]
[1727828115310,1.3169,144.26,144.17,10.76502]
[1727828115516,10.64,144.24,144.18,10.64]
[1727828116909,10.64,144.23,144.19,2.7745]
[1727828117617,13.4138,144.23,144.19,2.7745]
[1727828118221,2.7739,144.22,144.19,2.7745]
[1727828118420,10.64,144.23,144.18,13.4146]
[1727828118828,10.64,144.23,144.18,10.64]
[1727828119815,2.7735,144.24,144.19,10.64]
[1727828120014,1.3169,144.26,144.22,10.64]
[1727828120225,2.573,144.27,144.24,10.64]
[1727828120821,2.573,144.27,144.25,2.7732]
[1727828121321,1.2951,144.27,144.25,2.7732]
[1727828121522,0.12502,144.29,144.25,2.7732]
[1727828121716,0.12502,144.29,144.24,2.7735]
[1727828122132,2.773,144.27,144.24,2.7735]
[1727828122527,0.12502,144.29,144.25,2.7733]
[1727828122726,2.7729,144.28,144.25,2.7733]
[1727828123219,2.7729,144.28,144.24,2.7734]
[1727828124725,3.51843932,144.29,144.22,2.7738]
[1727828124930,3.51843932,144.29,144.17,0.12502]
[1727828124931,16.64,144.26,144.17,0.12502]
[1727828125130,16.64,144.24,144.17,2.89972]
[1727828125424,2.599,144.23,144.17,0.12502]
[1727828125825,2.7742,144.21,144.17,2.89982]
[1727828126132,1.3119,144.23,144.17,16.76502]
[1727828126329,4.0857,144.23,144.19,2.7744]
[1727828126718,1.3119,144.23,144.17,0.12502]
[1727828127035,1.3119,144.23,144.17,2.89982]
[1727828127443,2.7743,144.21,144.17,2.89982]
[1727828128140,1.3119,144.23,144.17,0.12502]
[1727828128342,2.7745,144.19,144.17,0.12502]
[1727828128540,1.379,144.22,144.17,0.12502]
[1727828129135,2.7744,144.2,144.17,0.12502]
[1727828129942,2.7742,144.21,144.18,2.7746]
[1727828130145,1.379,144.22,144.17,0.12502]
[1727828131347,4.1529,144.22,144.19,2.7745]
[1727828131745,1.379,144.22,144.19,2.7745]
[1727828133048,1.379,144.22,144.17,0.12502]
[1727828133049,1.3119,144.23,144.2,2.7742]
[1727828133435,1.3119,144.23,144.19,16.64]
[1727828133645,4.1729,144.27,144.21,16.64]
[1727828133846,1.3012,144.28,144.23,16.64]
[1727828134051,0.12502,144.29,144.26,2.773]
[1727828134242,0.12502,144.29,144.23,16.64]
[1727828134437,3.41919965,144.28,144.21,16.64]
[1727828134649,6.05259965,144.28,144.22,2.7739]
[1727828134837,1.3012,144.27,144.22,2.7739]
[1727828135043,1.3012,144.27,144.19,18.0332]
[1727828135347,2.7735,144.25,144.21,2.774]
[1727828135850,2.7735,144.25,144.22,2.7739]
[1727828136044,2.7732,144.26,144.22,2.7739]
[1727828136245,1.3012,144.27,144.19,18.0332]
[1727828136447,1.3012,144.27,144.21,2.774]
[1727828136640,2.7734,144.25,144.21,2.774]
[1727828137239,2.7734,144.25,144.19,18.0332]
[1727828137548,2.7734,144.25,144.22,2.7739]
[1727828138748,1.3012,144.27,144.19,18.0332]
[1727828138953,4.0742,144.27,144.23,2.7736]
[1727828139961,2.7731,144.26,144.23,2.7736]
[1727828141052,2.7731,144.26,144.22,2.7738]
[1727828141657,2.7731,144.26,144.23,2.7736]
[1727828142662,2.7734,144.25,144.19,16.64]
[1727828143542,2.7734,144.25,144.21,13.4239]
[1727828144145,0.12502,144.29,144.24,10.65]
[1727828144345,0.12502,144.29,144.28,10.65]
[1727828146157,2.7718,144.33,144.3,2.7723]
[1727828146348,4.0188,144.34,144.3,10.65]
[1727828146556,10.65,144.33,144.27,10.65]
[1727828146744,2.7724,144.3,144.27,10.65]
[1727828147555,2.7727,144.29,144.25,2.7732]
[1727828147757,20.6488,144.34,144.25,2.7732]
[1727828147961,16.63,144.32,144.23,0.12502]
[1727828148552,1.19717505,144.31,144.23,0.12502]
[1727828148750,16.63,144.3,144.23,0.12502]
[1727828148956,3.46700408,144.29,144.23,0.12502]
[1727828149151,2.7733,144.26,144.23,0.12502]
[1727828151160,2.7735,144.24,144.23,0.12502]
[1727828152655,0.94,144.25,144.18,2.7746]
[1727828153059,16.63,144.24,144.18,2.7746]
[1727828154665,2.774,144.22,144.18,2.7746]
[1727828160565,16.63,144.24,144.17,2.89982]
[1727828160778,16.63,144.24,144.17,0.12502]
[1727828161073,2.7742,144.21,144.17,2.89972]
[1727828161561,16.63,144.24,144.17,0.12502]
[1727828161763,2.7744,144.2,144.17,0.12502]
[1727828162559,2.7744,144.2,144.17,2.89982]
[1727828162757,0.94,144.25,144.11,0.12502]
[1727828162962,1.3342,144.19,144.11,20.29498822]
[1727828163162,1.3342,144.19,144.13,2.7756]
[1727828163367,1.3342,144.19,144.11,20.29498822]
[1727828163568,2.7749,144.17,144.11,20.29498822]
[1727828163767,2.7749,144.17,144.13,2.7755]
[1727828164756,1.3342,144.19,144.11,16.75502]
[1727828164958,2.7155,144.19,144.12,2.7757]
[1727828166360,2.7753,144.15,144.12,2.7757]
[1727828166958,3.5135366,144.17,144.11,0.12502]
[1727828166959,2.7757,144.13,144.11,0.12502]
[1727828167864,2.7751,144.16,144.11,0.12502]
[1727828168671,2.7753,144.15,144.12,2.7758]
[1727828171281,2.7748,144.18,144.14,2.7753]
[1727828171460,4.0934,144.19,144.14,2.7753]
[1727828171870,1.3342,144.19,144.12,16.63]
[1727828172080,4.1088,144.19,144.15,2.7751]
[1727828172462,4.1088,144.19,144.12,16.63]
[1727828172675,2.7059,144.24,144.12,16.63]
[1727828172880,0.12502,144.23,144.18,16.63]
[1727828173478,2.774,144.22,144.17,3.53976554]
[1727828173678,2.774,144.22,144.16,16.63]
[1727828174082,2.7743,144.2,144.16,3.40479506]
[1727828174287,16.63,144.21,144.16,3.40479506]
[1727828174583,2.7747,144.18,144.16,3.40479506]
[1727828174770,16.63,144.21,144.16,3.40479506]
[1727828174965,16.63,144.21,144.13,1.3331]